[Event "Championnat d'Europe de Blitz"]
[Date "2024.12.09"]
[White "Perunovic, Miodrag"]
[Black "Koelle, Tobias"]
[WhiteElo "2357"]
[BlackElo "2437"]
[Round "12.29"]
[Result "0-1"]
[TimeControl "180+2"]

1. e4 {[%clk 00:03:02]} c5 {[%emt 00:00:02] [%clk 00:03:03]} 2. Nf3 {[%emt
00:00:04] [%clk 00:02:59]} d6 {[%emt 00:00:01] [%clk 00:03:04]} 3. d4 {[%emt
00:00:01] [%clk 00:03:00]} cxd4 {[%emt 00:00:02] [%clk 00:03:05]} 4. Nxd4 {[%emt
00:00:01] [%clk 00:03:00]} Nf6 {[%emt 00:00:01] [%clk 00:03:05]} 5. Nc3 {[%emt
00:00:01] [%clk 00:03:01]} a6 {[%emt 00:00:01] [%clk 00:03:06]} 6. Bc4 {[%clk
00:03:02]} e6 {[%emt 00:00:07] [%clk 00:03:02]} 7. Be3 {[%clk 00:03:03]} Be7
{[%emt 00:00:03] [%clk 00:03:01]} 8. Bb3 {[%emt 00:00:02] [%clk 00:03:02]} b5
{[%emt 00:00:13] [%clk 00:02:50]} 9. Qf3 {[%emt 00:00:01] [%clk 00:03:02]} O-O
{[%emt 00:00:31] [%clk 00:02:22]} 10. e5 {[%emt 00:00:35] [%clk 00:02:29]} dxe5
{[%emt 00:00:02] [%clk 00:02:23]} 11. Qxa8 {[%emt 00:00:01] [%clk 00:02:30]}
exd4 {[%emt 00:00:01] [%clk 00:02:24]} 12. O-O-O {[%emt 00:00:11] [%clk
00:02:20]} Qc7 {[%emt 00:00:09] [%clk 00:02:16]} 13. Bxd4 {[%emt 00:00:09] [%clk
00:02:13]} Nc6 {[%emt 00:00:04] [%clk 00:02:14]} 14. Bxf6 {[%emt 00:01:46] [%clk
00:00:29]} Bxf6 {[%emt 00:00:02] [%clk 00:02:14]} 15. Ne4 {[%emt 00:00:06] [%clk
00:00:25]} Be7 {[%emt 00:00:17] [%clk 00:01:59]} 16. Rhe1 {[%emt 00:00:22] [%clk
00:00:06]} Bb7 {[%emt 00:00:01] [%clk 00:02:00]} 17. Qxf8+ {[%emt 00:00:02]
[%clk 00:00:06]} Kxf8 {[%emt 00:00:04] [%clk 00:01:58]} 18. g3 {[%emt 00:00:01]
[%clk 00:00:06]} g6 {[%emt 00:00:04] [%clk 00:01:56]} 19. Kb1 {[%emt 00:00:01]
[%clk 00:00:07]} Na5 {[%emt 00:00:04] [%clk 00:01:54]} 20. Re3 {[%emt 00:00:06]
[%clk 00:00:04]} Nxb3 {[%emt 00:00:11] [%clk 00:01:45]} 21. axb3 {[%emt
00:00:01] [%clk 00:00:05]} Bxe4 {[%emt 00:00:02] [%clk 00:01:44]} 22. Rxe4
{[%emt 00:00:01] [%clk 00:00:05]} Kg7 {[%emt 00:00:02] [%clk 00:01:44]} 23. Red4
{[%emt 00:00:01] [%clk 00:00:06]} Bf6 {[%clk 00:01:46]} 24. Rd7 {[%emt 00:00:01]
[%clk 00:00:07]} Qe5 {[%clk 00:01:47]} 25. c3 {[%clk 00:00:09]} Qf5+ {[%emt
00:00:01] [%clk 00:01:47]} 26. Ka2 {[%emt 00:00:02] [%clk 00:00:09]} Qxf2 {[%emt
00:00:02] [%clk 00:01:47]} 27. R1d2 {[%emt 00:00:01] [%clk 00:00:09]} Qf1 {[%emt
00:00:04] [%clk 00:01:44]} 28. Ra7 {[%emt 00:00:02] [%clk 00:00:09]} Be5 {[%emt
00:00:25] [%clk 00:01:21]} 29. Rdd7 {[%emt 00:00:04] [%clk 00:00:08]} b4 {[%emt
00:00:04] [%clk 00:01:19]} 30. cxb4 {[%emt 00:00:04] [%clk 00:00:05]} Qf2 {[%emt
00:00:01] [%clk 00:01:20]} 31. Rxf7+ {[%emt 00:00:04] [%clk 00:00:03]} Qxf7
{[%emt 00:00:01] [%clk 00:01:20]} 32. Rxf7+ {[%emt 00:00:02] [%clk 00:00:04]}
Kxf7 {[%emt 00:00:01] [%clk 00:01:21]} 33. Ka3 {[%emt 00:00:03] [%clk 00:00:04]}
Ke7 {[%emt 00:00:10] [%clk 00:01:12]} 34. Ka4 {[%clk 00:00:05]} Bxb2 {[%emt
00:00:01] [%clk 00:01:13]} 35. Ka5 {[%emt 00:00:02] [%clk 00:00:05]} Bc3 {[%emt
00:00:01] [%clk 00:01:14]} 36. Kxa6 {[%emt 00:00:01] [%clk 00:00:06]} Bxb4
{[%emt 00:00:01] [%clk 00:01:15]} 37. Kb5 {[%clk 00:00:07]} 0-1

[Site "Europe Echecs"]

[Event "Championnat d'Europe de Blitz"]
[Date "2024.12.09"]
[White "Danov, Lyubomir"]
[Black "Saric, Ante"]
[WhiteElo "2297"]
[BlackElo "2482"]
[Round "12.30"]
[Result "0-1"]
[TimeControl "180+2"]

1. e4 {[%emt 00:16:33] [%clk 00:00:00]} d5 {[%clk 00:00:00]} 2. exd5 {[%emt
00:00:14] [%clk 00:03:01]} Nf6 {[%clk 00:03:04]} 3. d4 {[%emt 00:00:02] [%clk
00:03:01]} Bg4 {[%emt 00:00:01] [%clk 00:03:05]} 4. Bb5+ {[%emt 00:00:13] [%clk
00:02:50]} Nbd7 {[%emt 00:00:02] [%clk 00:03:05]} 5. Be2 {[%emt 00:00:02] [%clk
00:02:50]} Bxe2 {[%emt 00:00:03] [%clk 00:03:05]} 6. Qxe2 {[%emt 00:00:01] [%clk
00:02:50]} Nxd5 {[%emt 00:00:02] [%clk 00:03:06]} 7. Nf3 {[%emt 00:00:01] [%clk
00:02:51]} e6 {[%emt 00:00:03] [%clk 00:03:05]} 8. c4 {[%emt 00:00:04] [%clk
00:02:48]} N5f6 {[%emt 00:00:03] [%clk 00:03:05]} 9. d5 {[%emt 00:00:03] [%clk
00:02:47]} Bb4+ {[%emt 00:00:04] [%clk 00:03:04]} 10. Bd2 {[%emt 00:00:02] [%clk
00:02:47]} Bxd2+ {[%emt 00:00:08] [%clk 00:02:57]} 11. Nbxd2 {[%emt 00:00:02]
[%clk 00:02:47]} O-O {[%emt 00:00:04] [%clk 00:02:56]} 12. dxe6 {[%emt 00:00:06]
[%clk 00:02:42]} Re8 {[%emt 00:00:03] [%clk 00:02:56]} 13. O-O {[%emt 00:00:21]
[%clk 00:02:23]} Rxe6 {[%emt 00:00:01] [%clk 00:02:57]} 14. Qd3 {[%emt 00:00:06]
[%clk 00:02:18]} Nc5 {[%emt 00:00:08] [%clk 00:02:51]} 15. Qa3 {[%clk 00:02:19]}
b6 {[%emt 00:00:11]} 16. Rad1 {[%clk 00:02:18]} Rd6 {[%emt 00:00:06] [%clk
00:02:40]} 17. Qe3 {[%emt 00:00:13] [%clk 00:02:07]} Qd7 {[%emt 00:00:44] [%clk
00:01:59]} 18. Rfe1 {[%emt 00:00:11] [%clk 00:01:58]} Rd8 {[%emt 00:00:11] [%clk
00:01:50]} 19. b4 {[%emt 00:01:30] [%clk 00:00:30]} Nd3 {[%emt 00:00:07] [%clk
00:01:45]} 20. Rf1 {[%emt 00:00:08] [%clk 00:00:24]} Nb2 {[%emt 00:00:14] [%clk
00:01:33]} 21. Rc1 {[%clk 00:00:24]} Rxd2 {[%emt 00:00:04] [%clk 00:01:31]} 22.
Nxd2 {[%emt 00:00:02] [%clk 00:00:25]} Qxd2 {[%clk 00:01:32]} 23. Qb3 {[%emt
00:00:03] [%clk 00:00:24]} Nd3 {[%emt 00:00:24] [%clk 00:01:10]} 24. Rcd1 {[%emt
00:00:08] [%clk 00:00:18]} Qe2 {[%emt 00:00:01] [%clk 00:01:11]} 25. Qa4 {[%emt
00:00:06] [%clk 00:00:14]} Rf8 {[%emt 00:00:11] [%clk 00:01:02]} 26. Qxa7 {[%emt
00:00:06] [%clk 00:00:10]} Nxb4 {[%emt 00:00:12] [%clk 00:00:52]} 27. Qxc7
{[%emt 00:00:01] [%clk 00:00:11]} Nxa2 {[%emt 00:00:10] [%clk 00:00:44]} 28. Rd8
{[%emt 00:00:06] [%clk 00:00:07]} g6 {[%emt 00:00:16] [%clk 00:00:31]} 29. Rxf8+
{[%emt 00:00:03] [%clk 00:00:05]} Kxf8 {[%clk 00:00:32]} 30. Qxb6 {[%emt
00:00:02] [%clk 00:00:05]} Ne4 {[%emt 00:00:05] [%clk 00:00:30]} 0-1

[Site "Europe Echecs"]

[Event "Championnat d'Europe de Blitz"]
[Date "2024.12.09"]
[White "Subelj, Jan"]
[Black "Manea, Alexandru"]
[WhiteElo "2526"]
[BlackElo "2272"]
[Round "12.31"]
[Result "1-0"]
[TimeControl "180+2"]

1. Nf3 {[%emt 00:00:01] [%clk 00:03:03]} Nf6 {[%emt 00:00:03] [%clk 00:03:02]}
2. c4 {[%clk 00:03:03]} b6 {[%emt 00:00:02] [%clk 00:03:03]} 3. g3 {[%emt
00:00:01] [%clk 00:03:04]} Bb7 {[%emt 00:00:01] [%clk 00:03:04]} 4. Bg2 {[%clk
00:03:04]} g6 {[%emt 00:00:01] [%clk 00:03:05]} 5. b3 {[%emt 00:00:01] [%clk
00:03:05]} Bg7 {[%clk 00:03:06]} 6. Bb2 {[%clk 00:03:07]} O-O {[%emt 00:00:01]
[%clk 00:03:07]} 7. O-O {[%emt 00:00:01] [%clk 00:03:07]} e6 {[%emt 00:00:03]
[%clk 00:03:06]} 8. Nc3 {[%emt 00:00:05] [%clk 00:03:03]} d5 {[%emt 00:00:03]
[%clk 00:03:06]} 9. cxd5 {[%emt 00:00:02] [%clk 00:03:03]} Nxd5 {[%emt 00:00:09]
[%clk 00:02:58]} 10. Qc2 {[%emt 00:00:02] [%clk 00:03:04]} c5 {[%emt 00:00:10]
[%clk 00:02:51]} 11. Nxd5 {[%emt 00:00:02] [%clk 00:03:04]} Bxd5 {[%emt
00:00:03] [%clk 00:02:50]} 12. Bxg7 {[%emt 00:00:02] [%clk 00:03:04]} Kxg7
{[%clk 00:02:51]} 13. Qc3+ {[%emt 00:00:02] [%clk 00:03:05]} Qf6 {[%emt
00:00:05] [%clk 00:02:48]} 14. Qxf6+ {[%emt 00:00:03] [%clk 00:03:03]} Kxf6
{[%emt 00:00:01] [%clk 00:02:49]} 15. d4 {[%emt 00:00:01] [%clk 00:03:05]} Nd7
{[%emt 00:00:18] [%clk 00:02:32]} 16. Rac1 {[%emt 00:00:01] [%clk 00:03:05]}
Rac8 {[%emt 00:00:03] [%clk 00:02:32]} 17. e4 {[%emt 00:00:08] [%clk 00:02:59]}
Ba8 {[%emt 00:00:09] [%clk 00:02:25]} 18. Rfd1 {[%emt 00:00:06] [%clk 00:02:55]}
cxd4 {[%emt 00:00:22] [%clk 00:02:05]} 19. Nxd4 {[%emt 00:00:01] [%clk
00:02:55]} Ke7 {[%emt 00:00:22] [%clk 00:01:45]} 20. Nb5 {[%emt 00:00:01] [%clk
00:02:56]} a6 {[%emt 00:00:43] [%clk 00:01:05]} 21. Na7 {[%emt 00:00:01] [%clk
00:02:56]} Rxc1 {[%emt 00:00:20] [%clk 00:00:46]} 22. Rxc1 {[%emt 00:00:01]
[%clk 00:02:57]} Nc5 {[%emt 00:00:02] [%clk 00:00:47]} 23. b4 {[%emt 00:00:03]
[%clk 00:02:57]} Nd3 {[%emt 00:00:15] [%clk 00:00:33]} 24. Rc7+ {[%emt 00:00:10]
[%clk 00:02:49]} Kf6 {[%emt 00:00:09] [%clk 00:00:26]} 25. a3 {[%emt 00:00:03]
[%clk 00:02:48]} g5 {[%emt 00:00:07] [%clk 00:00:21]} 26. Nc8 {[%emt 00:00:02]
[%clk 00:02:48]} Ke5 {[%emt 00:00:07] [%clk 00:00:16]} 27. Nxb6 {[%emt 00:00:02]
[%clk 00:02:49]} Bxe4 {[%emt 00:00:05] [%clk 00:00:13]} 28. Nd7+ {[%emt
00:00:01] [%clk 00:02:49]} 1-0

[Site "Europe Echecs"]

[Event "Championnat d'Europe de Blitz"]
[Date "2024.12.09"]
[White "Maltsevskaya, Aleksandra"]
[Black "Laurusas, Tomas"]
[WhiteElo "2368"]
[BlackElo "2578"]
[Round "12.32"]
[Result "0-1"]
[TimeControl "180+2"]

1. e4 {[%emt 00:00:01] [%clk 00:03:02]} c5 {[%emt 00:00:37] [%clk 00:02:27]} 2.
Nf3 {[%emt 00:00:02] [%clk 00:03:03]} e6 {[%clk 00:02:28]} 3. d4 {[%emt
00:00:02] [%clk 00:03:03]} cxd4 {[%emt 00:00:01] [%clk 00:02:29]} 4. Nxd4 {[%emt
00:00:02] [%clk 00:03:04]} a6 {[%clk 00:02:30]} 5. Bd3 {[%emt 00:00:01] [%clk
00:03:05]} Qc7 {[%emt 00:00:02] [%clk 00:02:31]} 6. Qe2 {[%emt 00:00:02] [%clk
00:03:04]} Bc5 {[%emt 00:00:02] [%clk 00:02:30]} 7. Nb3 {[%emt 00:00:01] [%clk
00:03:05]} Be7 {[%emt 00:00:02] [%clk 00:02:30]} 8. c4 {[%emt 00:00:02] [%clk
00:03:05]} d6 {[%emt 00:00:03] [%clk 00:02:29]} 9. Nc3 {[%emt 00:00:01] [%clk
00:03:06]} Nd7 {[%emt 00:00:02] [%clk 00:02:29]} 10. O-O {[%emt 00:00:02] [%clk
00:03:06]} b6 {[%emt 00:00:01] [%clk 00:02:30]} 11. Nd4 {[%emt 00:00:03] [%clk
00:03:06]} Bb7 {[%emt 00:00:02] [%clk 00:02:29]} 12. b3 {[%emt 00:00:02] [%clk
00:03:06]} Ngf6 {[%emt 00:00:02] [%clk 00:02:29]} 13. Bb2 {[%clk 00:03:07]} O-O
{[%emt 00:00:01] [%clk 00:02:30]} 14. Rad1 {[%emt 00:00:02] [%clk 00:03:08]}
Rab8 {[%emt 00:00:06] [%clk 00:02:26]} 15. Kh1 {[%emt 00:00:06] [%clk 00:03:04]}
Ne5 {[%emt 00:00:07] [%clk 00:02:21]} 16. Bb1 {[%emt 00:00:01] [%clk 00:03:04]}
Ng6 {[%emt 00:00:01] [%clk 00:02:22]} 17. f4 {[%emt 00:00:06] [%clk 00:03:00]}
e5 {[%emt 00:00:01] [%clk 00:02:23]} 18. fxe5 {[%emt 00:00:06] [%clk 00:02:56]}
dxe5 {[%emt 00:00:02] [%clk 00:02:22]} 19. Nf5 {[%emt 00:00:02] [%clk 00:02:56]}
Bc5 {[%emt 00:00:07] [%clk 00:02:17]} 20. Nd5 {[%emt 00:00:05] [%clk 00:02:53]}
Bxd5 {[%emt 00:00:03] [%clk 00:02:16]} 21. exd5 {[%emt 00:00:01] [%clk
00:02:54]} Rfe8 {[%emt 00:00:06] [%clk 00:02:12]} 22. Qf3 {[%emt 00:00:20] [%clk
00:02:36]} Qd8 {[%emt 00:00:04] [%clk 00:02:09]} 23. d6 {[%emt 00:00:22]} Re6
{[%clk 00:02:06]} 24. d7 {[%emt 00:00:40] [%clk 00:01:45]} Qc7 {[%emt 00:00:02]
[%clk 00:02:06]} 25. Nxg7 {[%emt 00:00:14] [%clk 00:01:32]} Kxg7 {[%emt
00:00:03] [%clk 00:02:05]} 26. Bf5 {[%emt 00:00:01] [%clk 00:01:33]} Be7 {[%emt
00:00:40] [%clk 00:01:27]} 27. Bxe6 {[%emt 00:00:04] [%clk 00:01:31]} fxe6
{[%clk 00:01:28]} 28. Qh3 {[%emt 00:00:05] [%clk 00:01:28]} Qc6 {[%emt 00:00:43]
[%clk 00:00:47]} 29. Bxe5 {[%emt 00:00:09] [%clk 00:01:21]} Nxe5 {[%emt
00:00:04] [%clk 00:00:45]} 30. Qg3+ {[%clk 00:01:22]} Nfg4 {[%emt 00:00:10]
[%clk 00:00:38]} 31. h3 {[%emt 00:00:17] [%clk 00:01:07]} Rd8 {[%emt 00:00:01]
[%clk 00:00:39]} 32. hxg4 {[%emt 00:00:01] [%clk 00:01:07]} Nxd7 {[%emt
00:00:04] [%clk 00:00:38]} 33. Qc3+ {[%emt 00:00:23] [%clk 00:00:46]} Kg8 {[%emt
00:00:12]} 34. Qe3 {[%clk 00:00:36]} Nf8 {[%emt 00:00:11] [%clk 00:00:30]} 35.
Rxd8 {[%emt 00:00:08] [%clk 00:00:30]} Bxd8 {[%clk 00:00:32]} 36. Qf4 {[%emt
00:00:01] [%clk 00:00:31]} Qe8 {[%clk 00:00:33]} 37. Qd6 {[%emt 00:00:06] [%clk
00:00:26]} Qe7 {[%emt 00:00:02] [%clk 00:00:33]} 38. Qxe7 {[%emt 00:00:21] [%clk
00:00:08]} Bxe7 {[%clk 00:00:35]} 39. g3 {[%emt 00:00:01] [%clk 00:00:09]} a5
{[%clk 00:00:36]} 40. Kg2 {[%emt 00:00:01] [%clk 00:00:09]} h6 {[%emt 00:00:13]
[%clk 00:00:24]} 41. Kf3 {[%emt 00:00:03] [%clk 00:00:09]} Kf7 {[%clk 00:00:26]}
42. Rd1 {[%emt 00:00:04] [%clk 00:00:07]} Ke8 {[%emt 00:00:07] [%clk 00:00:21]}
43. Rh1 {[%emt 00:00:01] [%clk 00:00:08]} Bg5 {[%clk 00:00:22]} 44. Re1 {[%emt
00:00:04] [%clk 00:00:06]} Ke7 {[%clk 00:00:23]} 45. Re5 {[%emt 00:00:01] [%clk
00:00:06]} Nd7 {[%emt 00:00:02] [%clk 00:00:24]} 46. Re2 {[%emt 00:00:01] [%clk
00:00:07]} Nc5 {[%emt 00:00:04] [%clk 00:00:23]} 47. Re1 {[%emt 00:00:04] [%clk
00:00:05]} Bf6 {[%emt 00:00:01] [%clk 00:00:23]} 48. Rh1 {[%emt 00:00:01] [%clk
00:00:05]} Bg7 {[%emt 00:00:02] [%clk 00:00:23]} 49. Rd1 {[%clk 00:00:06]} Bf6
{[%emt 00:00:05] [%clk 00:00:21]} 50. Rh1 {[%clk 00:00:07]} Bg5 {[%clk
00:00:22]} 51. Rd1 {[%clk 00:00:08]} e5 {[%emt 00:00:03] [%clk 00:00:22]} 52.
Rb1 {[%emt 00:00:04] [%clk 00:00:07]} e4+ {[%clk 00:00:22]} 53. Ke2 {[%clk
00:00:08]} Ne6 {[%emt 00:00:03] [%clk 00:00:22]} 54. Rd1 {[%emt 00:00:03] [%clk
00:00:07]} Nc5 {[%emt 00:00:03] [%clk 00:00:21]} 55. Rb1 {[%emt 00:00:01] [%clk
00:00:08]} Kd6 {[%emt 00:00:11] [%clk 00:00:12]} 56. a3 {[%emt 00:00:03] [%clk
00:00:08]} Ke5 {[%emt 00:00:02] [%clk 00:00:12]} 57. b4 {[%emt 00:00:01] [%clk
00:00:08]} axb4 {[%clk 00:00:13]} 58. Rxb4 {[%emt 00:00:02] [%clk 00:00:09]} Ne6
{[%emt 00:00:04] [%clk 00:00:11]} 59. Rxb6 {[%clk 00:00:10]} Nd4+ {[%clk
00:00:12]} 60. Ke1 {[%emt 00:00:03] [%clk 00:00:09]} e3 {[%clk 00:00:13]} 61. c5
{[%emt 00:00:04] [%clk 00:00:07]} Bd8 {[%emt 00:00:01] [%clk 00:00:14]} 62. Ra6
{[%emt 00:00:05] [%clk 00:00:04]} Ke4 {[%clk 00:00:16]} 63. Ra8 {[%emt 00:00:03]
[%clk 00:00:03]} Bc7 {[%emt 00:00:02] [%clk 00:00:16]} 64. Re8+ {[%emt 00:00:02]
[%clk 00:00:03]} Kd3 {[%emt 00:00:01] [%clk 00:00:16]} 65. Kf1 {[%emt 00:00:01]
[%clk 00:00:04]} Ba5 {[%emt 00:00:03] [%clk 00:00:16]} 66. c6 {[%emt 00:00:02]
[%clk 00:00:04]} Nxc6 {[%clk 00:00:17]} 67. Kg2 {[%emt 00:00:02] [%clk
00:00:04]} Nd4 {[%emt 00:00:02] [%clk 00:00:17]} 68. g5 {[%emt 00:00:02] [%clk
00:00:04]} hxg5 {[%clk 00:00:19]} 69. Kh3 {[%clk 00:00:05]} e2 {[%emt 00:00:14]
[%clk 00:00:07]} 70. Kg4 {[%clk 00:00:07]} Bd2 {[%clk 00:00:08]} 71. Rxe2 {[%emt
00:00:02] [%clk 00:00:07]} Kxe2 {[%emt 00:00:01] [%clk 00:00:09]} 72. a4 {[%emt
00:00:02] [%clk 00:00:07]} Nb3 73. Kh3 {[%emt 00:00:05] [%clk 00:00:04]} Kf3
{[%clk 00:00:11]} 0-1

[Site "Europe Echecs"]

[Event "Championnat d'Europe de Blitz"]
[Date "2024.12.09"]
[White "Ghimpu, Samuel-Timotei"]
[Black "Saraci, Nderim"]
[WhiteElo "2475"]
[BlackElo "2431"]
[Round "12.33"]
[Result "1-0"]
[TimeControl "180+2"]

1. d4 {[%emt 00:01:35] [%clk 00:03:02]} d5 {[%emt 00:00:02] [%clk 00:03:02]} 2.
Nf3 {[%emt 00:00:02] [%clk 00:03:02]} Nf6 {[%emt 00:00:02] [%clk 00:03:03]} 3.
Bf4 {[%emt 00:00:02] [%clk 00:03:03]} Bf5 {[%emt 00:00:01] [%clk 00:03:03]} 4.
e3 {[%emt 00:00:15] [%clk 00:02:50]} e6 {[%emt 00:00:01] [%clk 00:03:04]} 5. Bd3
{[%clk 00:02:52]} Bxd3 {[%emt 00:00:12] [%clk 00:02:54]} 6. cxd3 {[%emt
00:00:01] [%clk 00:02:52]} c5 {[%emt 00:00:07] [%clk 00:02:49]} 7. Qb3 {[%emt
00:01:13] [%clk 00:01:42]} Qb6 {[%emt 00:00:19] [%clk 00:02:32]} 8. Nc3 {[%emt
00:00:16] [%clk 00:01:28]} Nc6 {[%emt 00:00:46] [%clk 00:01:49]} 9. Nb5 {[%emt
00:00:21] [%clk 00:01:09]} Rc8 {[%emt 00:00:18] [%clk 00:01:33]} 10. O-O {[%emt
00:00:45] [%clk 00:00:26]} cxd4 {[%emt 00:00:31] [%clk 00:01:04]} 11. Nbxd4
{[%emt 00:00:18] [%clk 00:00:10]} Qxb3 {[%emt 00:00:07] [%clk 00:00:59]} 12.
Nxb3 {[%emt 00:00:03] [%clk 00:00:09]} Be7 {[%emt 00:00:06] [%clk 00:00:54]} 13.
a3 {[%emt 00:00:03] [%clk 00:00:08]} Nh5 {[%emt 00:00:07] [%clk 00:00:49]} 14.
Bg5 {[%emt 00:00:04] [%clk 00:00:06]} f6 {[%emt 00:00:04] [%clk 00:00:47]} 15.
Bh4 {[%emt 00:00:05]} g5 {[%clk 00:00:45]} 16. Bg3 {[%clk 00:00:09]} Kd7 {[%emt
00:00:02] [%clk 00:00:46]} 17. Rfc1 {[%emt 00:00:03] [%clk 00:00:08]} b6 {[%emt
00:00:04] [%clk 00:00:44]} 18. Kf1 {[%emt 00:00:04] [%clk 00:00:06]} g4 {[%emt
00:00:02] [%clk 00:00:44]} 19. Nfd4 {[%clk 00:00:07]} Nxd4 {[%emt 00:00:07]
[%clk 00:00:39]} 20. Nxd4 {[%clk 00:00:08]} Ng7 {[%emt 00:00:09] [%clk
00:00:33]} 21. f3 {[%emt 00:00:02] [%clk 00:00:08]} e5 {[%emt 00:00:01] [%clk
00:00:34]} 22. Nb5 {[%emt 00:00:02] [%clk 00:00:08]} a6 {[%emt 00:00:10] [%clk
00:00:26]} 23. Nc3 {[%clk 00:00:10]} Ke6 {[%emt 00:00:04] [%clk 00:00:24]} 24.
fxg4 {[%emt 00:00:01] [%clk 00:00:10]} h5 {[%emt 00:00:01] [%clk 00:00:25]} 25.
gxh5 {[%emt 00:00:01] [%clk 00:00:10]} Rxh5 {[%emt 00:00:04] [%clk 00:00:23]}
26. h3 {[%emt 00:00:01] [%clk 00:00:11]} Rg8 {[%emt 00:00:05] [%clk 00:00:20]}
27. Bf2 {[%emt 00:00:01] [%clk 00:00:11]} Rg5 {[%emt 00:00:03] [%clk 00:00:19]}
28. e4 {[%emt 00:00:02] [%clk 00:00:12]} dxe4 {[%emt 00:00:04] [%clk 00:00:17]}
29. Nxe4 {[%clk 00:00:13]} Rg6 {[%emt 00:00:07] [%clk 00:00:12]} 30. Rc6+ {[%clk
00:00:14]} Kf7 {[%emt 00:00:01] [%clk 00:00:13]} 31. Rxb6 {[%emt 00:00:02] [%clk
00:00:14]} f5 {[%emt 00:00:05] [%clk 00:00:11]} 32. Rxg6 {[%emt 00:00:04] [%clk
00:00:12]} Kxg6 {[%clk 00:00:12]} 33. Nc5 {[%emt 00:00:01] [%clk 00:00:13]} Bxc5
{[%emt 00:00:03] [%clk 00:00:10]} 34. Bxc5 {[%clk 00:00:14]} Ne6 {[%clk
00:00:12]} 35. Be3 {[%clk 00:00:15]} f4 {[%emt 00:00:01] [%clk 00:00:12]} 36.
Bf2 {[%emt 00:00:01] [%clk 00:00:16]} Kf5 {[%emt 00:00:02] [%clk 00:00:13]} 37.
Rc1 {[%emt 00:00:01] [%clk 00:00:17]} Rd8 {[%emt 00:00:02] [%clk 00:00:13]} 38.
Ke2 {[%clk 00:00:18]} Rg8 {[%clk 00:00:15]} 39. Kf1 {[%emt 00:00:03] [%clk
00:00:17]} Rd8 {[%clk 00:00:16]} 40. Rc3 {[%clk 00:00:19]} a5 {[%emt 00:00:02]
[%clk 00:00:16]} 41. b4 {[%emt 00:00:01] [%clk 00:00:20]} axb4 {[%clk 00:00:17]}
42. axb4 {[%clk 00:00:21]} Rb8 {[%emt 00:00:03] [%clk 00:00:17]} 43. Rb3 {[%emt
00:00:01] [%clk 00:00:21]} Nc7 {[%clk 00:00:18]} 44. Bc5 {[%emt 00:00:06] [%clk
00:00:17]} Nb5 {[%emt 00:00:03] [%clk 00:00:17]} 45. Rb1 {[%emt 00:00:08] [%clk
00:00:11]} Ra8 {[%clk 00:00:18]} 46. Rc1 {[%emt 00:00:01] [%clk 00:00:11]} Ra3
{[%emt 00:00:02] [%clk 00:00:19]} 47. Ke2 {[%emt 00:00:03] [%clk 00:00:10]} Ra2+
{[%clk 00:00:20]} 48. Kf1 {[%clk 00:00:12]} Rd2 {[%emt 00:00:02] [%clk
00:00:20]} 49. Ra1 {[%emt 00:00:03] [%clk 00:00:11]} Rxd3 {[%emt 00:00:01] [%clk
00:00:21]} 50. Ra5 {[%clk 00:00:12]} Nc3 {[%emt 00:00:02] [%clk 00:00:21]} 51.
Ra1 {[%emt 00:00:07] [%clk 00:00:07]} e4 {[%emt 00:00:03] [%clk 00:00:20]} 52.
Bf2 {[%emt 00:00:02] [%clk 00:00:07]} e3 {[%emt 00:00:03] [%clk 00:00:19]} 53.
Be1 {[%clk 00:00:09]} Nb5 {[%emt 00:00:02] [%clk 00:00:18]} 54. Ra5 {[%emt
00:00:02] [%clk 00:00:09]} Rd5 {[%clk 00:00:20]} 55. Ke2 {[%emt 00:00:03] [%clk
00:00:07]} Ke4 {[%emt 00:00:02] [%clk 00:00:21]} 56. Ra8 {[%emt 00:00:03] [%clk
00:00:07]} Nd4+ {[%emt 00:00:01] [%clk 00:00:21]} 57. Kf1 {[%clk 00:00:08]} Kd3
{[%emt 00:00:03] [%clk 00:00:20]} 58. Rf8 {[%emt 00:00:02] [%clk 00:00:08]} Ke4
{[%emt 00:00:03] [%clk 00:00:20]} 59. Re8+ {[%clk 00:00:09]} Kd3 {[%emt
00:00:02] [%clk 00:00:20]} 60. Rf8 {[%clk 00:00:11]} Ne2 {[%emt 00:00:05] [%clk
00:00:17]} 61. Ra8 {[%emt 00:00:05] [%clk 00:00:07]} Nc1 {[%emt 00:00:05] [%clk
00:00:14]} 62. Rf8 {[%emt 00:00:03] [%clk 00:00:06]} Nb3 {[%emt 00:00:03] [%clk
00:00:13]} 63. Rxf4 {[%emt 00:00:03] [%clk 00:00:05]} Nd2+ {[%emt 00:00:02]
[%clk 00:00:13]} 64. Kg1 {[%clk 00:00:07]} Rd8 {[%emt 00:00:03] [%clk 00:00:12]}
65. Rf7 {[%emt 00:00:03] [%clk 00:00:05]} Ra8 {[%emt 00:00:01] [%clk 00:00:13]}
66. Rd7+ {[%emt 00:00:01] [%clk 00:00:06]} Ke2 {[%clk 00:00:14]} 67. Bh4 {[%emt
00:00:01] [%clk 00:00:07]} Ra1+ {[%clk 00:00:15]} 68. Kh2 {[%clk 00:00:08]} Nf1
{[%emt 00:00:02] [%clk 00:00:15]} 69. Kg1 {[%clk 00:00:10]} Rb1 {[%emt 00:00:04]
[%clk 00:00:13]} 70. Bg5 {[%emt 00:00:04] [%clk 00:00:08]} Ng3+ {[%emt 00:00:03]
[%clk 00:00:13]} 71. Kh2 {[%clk 00:00:09]} Nf1 {[%emt 00:00:04] [%clk 00:00:11]}
72. Kg1 {[%clk 00:00:10]} Rxb4 {[%emt 00:00:02] [%clk 00:00:11]} 73. h4 {[%emt
00:00:04]} Rb1 {[%clk 00:00:12]} 74. Re7 {[%emt 00:00:03] [%clk 00:00:08]} Kd3
{[%emt 00:00:03] [%clk 00:00:10]} 75. Rd7+ {[%emt 00:00:03] [%clk 00:00:09]} Ke4
{[%emt 00:00:01] [%clk 00:00:10]} 76. Re7+ {[%emt 00:00:01] [%clk 00:00:10]} Kd3
{[%emt 00:00:02] [%clk 00:00:10]} 77. Rd7+ {[%emt 00:00:01] [%clk 00:00:10]} Ke2
{[%emt 00:00:01] [%clk 00:00:11]} 78. Re7 {[%emt 00:00:01] [%clk 00:00:11]} Rd1
{[%emt 00:00:03] [%clk 00:00:10]} 79. h5 {[%emt 00:00:03] [%clk 00:00:10]} Ng3+
{[%emt 00:00:02] [%clk 00:00:11]} 80. Kh2 {[%clk 00:00:12]} Nxh5 {[%emt
00:00:06] [%clk 00:00:07]} 81. Rxe3+ {[%clk 00:00:13]} Kf1 {[%emt 00:00:01]
[%clk 00:00:07]} 82. g4 {[%emt 00:00:05] [%clk 00:00:09]} Ng7 {[%emt 00:00:04]
[%clk 00:00:05]} 83. Re7 {[%clk 00:00:11]} Rd5 {[%emt 00:00:02] [%clk 00:00:05]}
84. Rxg7 {[%emt 00:00:02] [%clk 00:00:11]} 1-0

[Site "Europe Echecs"]